bitfinex-derivatives/quotes_BTCF0:USTF0_20251130
["timestamp","ask_amount","ask_price","bid_price","bid_amount"]
[1764509149751,1.26708463,91931.0,91922.0,0.97411307]
[1764509149951,1.26408463,91931.0,91923.0,0.97311307]
[1764509150262,0.1088,91929.0,91925.0,0.97311307]
[1764509150459,0.8888,91929.0,91928.0,0.97311307]
[1764509150664,0.11731738,91928.0,91926.0,0.97311307]
[1764509150857,0.73,91928.0,91926.0,0.97311307]
[1764509151163,0.73,91928.0,91927.0,0.97311307]
[1764509151462,0.85019369,91928.0,91927.0,0.97311307]
[1764509151754,0.95897388,91928.0,91927.0,0.97311307]
[1764509152351,0.96097388,91928.0,91927.0,0.97311307]
[1764509152760,1.77305388,91928.0,91927.0,0.97311307]
[1764509153064,1.79105388,91928.0,91927.0,0.97411307]
[1764509154054,1.89985388,91928.0,91927.0,0.97411307]
[1764509154559,1.98473833,91928.0,91927.0,0.97411307]
[1764509161565,1.50715369,91928.0,91927.0,2.26586566]
[1764509161764,1.68207369,91928.0,91927.0,2.26586566]
[1764509162159,1.7695681,91928.0,91927.0,2.26586566]
[1764509162460,1.87834947,91928.0,91927.0,1.20341566]
[1764509162668,1.98714947,91928.0,91927.0,1.20341566]
[1764509163867,1.98714947,91928.0,91927.0,0.97411307]
[1764509165761,1.81222947,91928.0,91927.0,0.97411307]
[1764509165967,1.98710947,91928.0,91927.0,0.97411307]
[1764509166768,2.00412267,91928.0,91927.0,1.20341566]
[1764509167364,1.19228267,91928.0,91927.0,1.20341566]
[1764509167560,1.19228267,91928.0,91927.0,2.26586566]
[1764509167765,2.10174503,91928.0,91927.0,2.26586566]
[1764509168268,1.18929503,91928.0,91927.0,1.20341566]
[1764509168468,1.89303237,91928.0,91927.0,1.20341566]
[1764509168773,1.88127223,91928.0,91927.0,1.20341566]
[1764509168975,1.77247223,91928.0,91927.0,1.20341566]
[1764509170772,1.27844795,91928.0,91927.0,1.52454307]
[1764509170963,1.45324795,91928.0,91927.0,1.52454307]
[1764509172867,1.02841734,91928.0,91927.0,1.52454307]
[1764509182776,1.04542804,91928.0,91927.0,1.52454307]
[1764509182979,1.15420941,91928.0,91927.0,0.97411307]
[1764509183775,1.23239389,91928.0,91927.0,0.97411307]
[1764509185969,1.15420941,91928.0,91927.0,0.97411307]
[1764509187374,1.15420941,91928.0,91927.0,1.24171307]
[1764509191374,1.15420941,91928.0,91927.0,0.97411307]
[1764509192575,1.26300941,91928.0,91927.0,0.97411307]
[1764509193070,1.36067177,91928.0,91927.0,0.97411307]
[1764509195683,1.26300941,91928.0,91927.0,0.97411307]
[1764509199479,1.24599871,91928.0,91927.0,0.97411307]
[1764509199884,1.26301303,91928.0,91927.0,0.97411307]
[1764509202089,1.26301303,91928.0,91927.0,0.64744671]
[1764509202291,1.26301303,91928.0,91927.0,0.11672696]
[1764509204894,1.39940401,91928.0,91927.0,0.11672696]
[1764509205796,1.39940401,91928.0,91926.0,0.00027196]
[1764509206000,0.12581432,91927.0,91926.0,0.00027196]
[1764509206300,1.01043367,91927.0,91926.0,0.00027196]
[1764509206597,1.11921563,91927.0,91926.0,0.00027196]
[1764509207100,1.11921563,91927.0,91926.0,0.52772196]
[1764509207299,1.64745563,91927.0,91926.0,0.52772196]
[1764509207498,1.82233563,91927.0,91926.0,0.52772196]
[1764509207901,1.82433563,91927.0,91926.0,0.52772196]
[1764509209298,1.82433543,91927.0,91926.0,0.52772196]
[1764509209893,1.82437543,91927.0,91926.0,0.52772196]
[1764509210490,1.65045543,91927.0,91926.0,1.47132196]
[1764509210693,1.20167347,91927.0,91926.0,1.47132196]
[1764509210999,1.67551347,91927.0,91926.0,1.47132196]
[1764509211194,0.66168347,91927.0,91926.0,1.47132196]
[1764509211401,0.77259978,91927.0,91926.0,1.47132196]
[1764509211599,0.94643978,91927.0,91926.0,1.47132196]
[1764509212101,0.61283978,91927.0,91926.0,0.94132714]
[1764509212293,0.95417526,91927.0,91926.0,0.92772196]
[1764509213294,0.33033526,91927.0,91926.0,0.92772196]
[1764509213593,0.90115922,91927.0,91926.0,0.40027196]
[1764509215193,0.90115922,91927.0,91926.0,0.40427196]
[1764509215597,0.90115922,91927.0,91926.0,0.40327196]
[1764509218301,0.90115922,91927.0,91926.0,0.40027196]
[1764509218502,0.90115922,91927.0,91926.0,0.40227196]
[1764509219092,0.90115922,91927.0,91926.0,0.00227196]
[1764509219892,0.72731922,91927.0,91926.0,0.00227196]
[1764509220096,0.90111922,91927.0,91926.0,0.00227196]
[1764509221093,0.72731922,91927.0,91926.0,0.00227196]
[1764509221409,0.51107922,91927.0,91926.0,0.40227196]
[1764509221600,0.39376,91927.0,91926.0,0.40227196]
[1764509222100,0.22809526,91927.0,91926.0,0.40227196]
[1764509223509,0.21,91927.0,91926.0,0.40227196]
[1764509225208,0.21,91927.0,91926.0,0.00227196]
[1764509225209,0.74185011,91927.0,91926.0,0.00227196]
[1764509225604,1.020177,91927.0,91926.0,0.00227196]
[1764509226310,0.758857,91927.0,91926.0,0.00227196]
[1764509228613,1.286847,91927.0,91926.0,0.00227196]
[1764509228912,1.193937,91927.0,91926.0,0.00227196]
[1764509230013,0.932617,91927.0,91926.0,0.00227196]
[1764509231514,1.193937,91927.0,91926.0,0.00227196]
[1764509231710,1.193937,91927.0,91919.0,0.00010997]
[1764509231711,0.26132,91920.0,91919.0,0.00010997]
[1764509231906,1.52398689,91920.0,91919.0,0.00010997]
[1764509232106,1.64777273,91920.0,91919.0,0.00010997]
[1764509232712,0.52799,91911.0,91889.0,0.03805919]
[1764509232912,1.52875689,91911.0,91889.0,0.03805919]
[1764509233115,1.38299985,91911.0,91889.0,0.03805919]
[1764509233308,0.01700689,91910.0,91888.0,0.03805919]
[1764509233502,0.82700689,91910.0,91888.0,0.03805919]
[1764509233716,0.00016317,91908.0,91902.0,0.0108808]
[1764509233913,0.01700689,91907.0,91902.0,0.0108808]
[1764509234114,8.501e-05,91906.0,91902.0,0.0108808]
[1764509234314,0.01700999,91905.0,91898.0,0.0108811]
[1764509234616,0.97614596,91905.0,91898.0,0.0108811]
[1764509235117,0.52847018,91904.0,91889.0,0.01372222]
[1764509235318,0.52847018,91903.0,91888.0,0.011]
[1764509235512,0.52847018,91902.0,91888.0,0.0218824]
[1764509235711,0.70223018,91901.0,91888.0,0.0218824]
[1764509236007,0.40783,91899.0,91888.0,0.0108824]
[1764509236221,0.52847018,91898.0,91886.0,0.00479208]
[1764509236414,0.52847018,91897.0,91886.0,0.00479208]
[1764509236612,0.52847018,91897.0,91875.0,0.03805919]
[1764509236613,0.51146,91876.0,91875.0,0.03805919]
[1764509236812,0.25589,91871.0,91860.0,0.0108857]
[1764509237120,0.19077018,91870.0,91860.0,0.0108857]
[1764509237313,0.01701018,91869.0,91860.0,0.0108857]
[1764509237517,0.37701018,91869.0,91860.0,0.02477051]
[1764509237719,0.65053008,91868.0,91860.0,0.01388481]
[1764509238025,0.27290018,91867.0,91860.0,0.007]
[1764509238218,0.01701018,91866.0,91860.0,0.007]
[1764509238419,0.52907008,91866.0,91860.0,0.007]
[1764509238613,0.01701018,91865.0,91860.0,0.007]
[1764509238814,0.43701018,91865.0,91860.0,0.02057411]
[1764509239011,0.01701018,91864.0,91860.0,0.02057411]
[1764509239324,0.40701018,91864.0,91860.0,0.02057411]
[1764509239632,0.01701018,91863.0,91860.0,0.03145981]
[1764509239820,0.39701018,91863.0,91860.0,0.03145981]
[1764509240128,0.01701018,91862.0,91860.0,0.03145981]
[1764509240317,0.39701018,91862.0,91860.0,0.03145981]
[1764509240521,0.01701018,91861.0,91860.0,0.03145981]
[1764509240716,0.43701018,91861.0,91860.0,0.03145981]
[1764509244422,0.16864666,91876.0,91869.0,0.0108847]
[1764509244622,0.01701638,91875.0,91865.0,0.0108851]
[1764509244823,0.01701638,91874.0,91865.0,0.0108851]
[1764509245025,0.01701638,91873.0,91865.0,0.0108851]
[1764509245227,0.01701638,91872.0,91865.0,0.0108851]
[1764509245428,0.01701638,91871.0,91865.0,0.0108851]
[1764509245727,0.01701638,91870.0,91867.0,0.0108849]
[1764509245934,0.01701638,91869.0,91867.0,0.0108849]
[1764509246134,0.01701638,91868.0,91867.0,0.0108849]
[1764509246323,0.39701638,91868.0,91867.0,0.0108849]
[1764509247037,0.38,91868.0,91867.0,0.0108849]
[1764509247227,0.38,91868.0,91867.0,0.0158849]
[1764509248536,0.89173,91868.0,91867.0,0.0158849]
[1764509248838,0.90874579,91868.0,91867.0,0.005]
[1764509249429,0.39701579,91868.0,91867.0,0.005]
[1764509249629,0.65191579,91868.0,91867.0,0.005]
[1764509251251,0.39701579,91868.0,91867.0,0.005]
[1764509253644,0.65191579,91868.0,91867.0,0.005]
[1764509254043,0.90874579,91868.0,91867.0,0.005]
[1764509255540,0.01701579,91868.0,91867.0,0.005]
[1764509255745,0.29701579,91868.0,91867.0,0.005]
[1764509256548,0.80874579,91868.0,91867.0,0.005]
[1764509260147,0.80874633,91868.0,91867.0,0.005]
[1764509260948,0.80874633,91868.0,91867.0,0.0158849]
[1764509262045,0.80874633,91868.0,91867.0,0.005]
[1764509262958,0.51173,91852.0,91847.0,0.0108873]
[1764509263251,1.63026703,91852.0,91846.0,0.0002722]
[1764509264056,1.63026703,91852.0,91851.0,0.01390959]
[1764509265455,1.63026703,91852.0,91851.0,0.01990959]
[1764509265959,1.63027118,91852.0,91851.0,0.01990959]
[1764509267748,1.63027118,91852.0,91846.0,0.03833139]
[1764509267749,0.5501,91847.0,91846.0,0.03833139]
[1764509267949,1.38712048,91847.0,91846.0,0.03833139]
[1764509268145,0.2717,91841.0,91840.0,0.05709874]
[1764509268450,0.71545,91832.0,91831.0,0.0108892]
[1764509268654,1.15257243,91832.0,91831.0,0.0108892]
[1764509269052,0.5501,91830.0,91829.0,0.04199]
[1764509269250,0.97712048,91830.0,91829.0,0.04199]
[1764509269446,0.5501,91826.0,91825.0,0.14107874]
[1764509269751,0.99712048,91826.0,91825.0,0.08398]
[1764509269956,0.99712048,91826.0,91825.0,0.04199]
[1764509270860,0.01702048,91826.0,91825.0,0.49784192]
[1764509271157,0.00010195,91832.0,91831.0,0.08398]
[1764509271357,0.05712264,91832.0,91831.0,0.08398]
[1764509271959,0.29712264,91832.0,91831.0,0.08398]
[1764509272257,0.05712264,91832.0,91831.0,0.08398]
[1764509272454,0.38712264,91832.0,91831.0,0.08398]
[1764509272756,0.38712264,91832.0,91831.0,0.08498]
[1764509273147,0.06712264,91832.0,91831.0,0.14492837]
[1764509273344,0.42712264,91832.0,91831.0,0.14492837]
[1764509273553,0.01712264,91832.0,91831.0,0.14492837]
[1764509275253,0.01712264,91832.0,91831.0,0.14392837]
[1764509275655,0.00016326,91841.0,91840.0,0.0948681]
[1764509275960,0.00016326,91841.0,91840.0,0.1528037]
[1764509276662,0.00024897,91841.0,91840.0,0.0948681]
[1764509279760,0.38024897,91841.0,91840.0,0.0948681]
[1764509280956,0.93034897,91841.0,91840.0,0.0948681]
[1764509281158,0.93034897,91841.0,91840.0,0.0558781]
[1764509281460,0.93034897,91841.0,91840.0,0.0138881]
[1764509281658,0.93034897,91841.0,91840.0,0.06887297]
[1764509281853,0.93034897,91841.0,91840.0,0.07087297]
[1764509282054,0.93034897,91841.0,91840.0,0.05998487]
[1764509282359,1.04967824,91841.0,91840.0,0.002]
[1764509282656,0.93034897,91841.0,91840.0,0.04399]
[1764509282849,0.93034897,91841.0,91840.0,0.08598]
[1764509283052,0.93034897,91841.0,91840.0,0.002]
[1764509283561,1.08034897,91841.0,91840.0,0.002]
[1764509285557,0.93034897,91841.0,91840.0,0.0128881]
[1764509285966,0.93034897,91841.0,91840.0,0.002]
[1764509286662,1.09034897,91841.0,91840.0,0.002]
[1764509286859,0.93034897,91841.0,91840.0,0.04399]
[1764509287665,0.94737052,91841.0,91840.0,0.04399]
[1764509288062,0.94737052,91841.0,91840.0,0.08598]
[1764509288768,0.94737052,91841.0,91840.0,0.04399]
[1764509289366,0.94737052,91841.0,91840.0,0.002]
[1764509290765,1.49400497,91841.0,91840.0,0.002]
[1764509293661,0.94737052,91841.0,91840.0,0.08598]
[1764509294160,0.94737052,91841.0,91840.0,0.14396487]
[1764509295660,0.94737052,91841.0,91840.0,0.10197487]
[1764509296361,0.94737052,91841.0,91840.0,0.05998487]
[1764509298467,0.01727052,91841.0,91840.0,0.08598]
[1764509298660,0.89930897,91841.0,91840.0,0.08598]
[1764509299269,0.89930897,91841.0,91840.0,0.16289277]
[1764509300271,0.06726829,91841.0,91840.0,0.16289277]
[1764509300673,0.00024897,91841.0,91840.0,0.08598]
[1764509300876,0.51930897,91841.0,91840.0,0.08598]
[1764509301574,0.91930897,91841.0,91840.0,0.08598]
[1764509303075,0.01024897,91841.0,91840.0,0.08598]
[1764509303470,0.00024897,91841.0,91840.0,0.08598]
[1764509305061,0.00024897,91841.0,91840.0,0.12846102]
[1764509306477,0.52855897,91841.0,91840.0,0.12846102]
[1764509308780,0.26121897,91841.0,91840.0,0.12846102]
[1764509309879,0.52855897,91841.0,91840.0,0.12846102]
[1764509311882,0.87855897,91841.0,91840.0,0.12846102]
[1764509312280,0.52855897,91841.0,91840.0,0.12846102]
[1764509312583,0.63855897,91841.0,91840.0,0.12846102]
[1764509312784,0.00024897,91841.0,91840.0,0.12846102]
[1764509313379,7e-08,91841.0,91840.0,0.12846102]
[1764509313585,0.68154,91856.0,91855.0,0.0948663]
[1764509313785,1.10154,91856.0,91855.0,0.0948663]
[1764509314883,0.4342,91856.0,91855.0,0.0948663]
[1764509315069,1.06154,91856.0,91855.0,0.0948663]
[1764509315984,0.42632,91864.0,91863.0,0.0948654]
[1764509316185,1.07366,91864.0,91863.0,0.0948654]
[1764509316382,0.00016336,91865.0,91864.0,0.08398]
[1764509316682,0.94847336,91865.0,91864.0,0.08398]
[1764509317387,0.94847336,91865.0,91864.0,0.16133751]
[1764509317586,0.95247336,91865.0,91864.0,0.16133751]
[1764509318484,0.95247336,91865.0,91864.0,0.08398]
[1764509318881,0.65247336,91865.0,91864.0,0.08398]
[1764509319077,6e-08,91865.0,91864.0,0.08398]
[1764509319686,0.26097006,91865.0,91864.0,0.08398]
[1764509319987,0.52831006,91865.0,91864.0,0.08398]
[1764509321480,0.52831006,91865.0,91864.0,0.08498]
[1764509322488,0.52831,91865.0,91864.0,0.09098]
[1764509323482,0.26097,91865.0,91864.0,0.16820977]
[1764509323782,0.53544336,91874.0,91873.0,0.0948642]
[1764509323981,0.95544336,91874.0,91873.0,0.0108842]
[1764509324582,0.95544336,91874.0,91873.0,0.06880281]
[1764509325580,0.95544336,91874.0,91873.0,0.07180281]
[1764509327174,0.95544336,91874.0,91873.0,0.0138842]
[1764509332088,1.07136806,91874.0,91873.0,0.003]
[1764509332290,0.53528,91858.0,91857.0,0.04248102]
[1764509332491,0.93528,91858.0,91857.0,0.04248102]
[1764509333990,0.93528,91858.0,91857.0,0.05148102]
[1764509334696,0.93528,91858.0,91857.0,0.009]
[1764509335991,0.93528,91858.0,91857.0,0.1228]
[1764509336186,0.6958,91868.0,91867.0,0.2276]
[1764509336392,1.0558,91868.0,91867.0,0.2384849]
[1764509337094,1.0558,91868.0,91867.0,0.1246849]
[1764509337294,1.0558,91868.0,91867.0,0.0108849]
[1764509338695,1.0558,91868.0,91867.0,0.0138849]
[1764509341301,0.6958,91868.0,91867.0,0.1276849]
[1764509341488,0.6958,91868.0,91867.0,0.2414849]
[1764509341694,0.53544336,91874.0,91873.0,0.2384842]
[1764509341895,0.74544336,91874.0,91873.0,0.2384842]
[1764509342295,0.74544336,91874.0,91873.0,0.0108842]
[1764509343104,0.74544336,91874.0,91873.0,0.0118842]
[1764509344606,0.76245624,91874.0,91873.0,0.0118842]
[1764509346894,0.76245624,91874.0,91864.0,0.07734733]
[1764509346895,0.53528,91865.0,91864.0,0.07734733]
[1764509347098,0.53528,91861.0,91855.0,0.08823363]
[1764509347299,0.53528,91855.0,91854.0,0.00016336]
[1764509347599,0.94229438,91855.0,91854.0,3.36e-06]
[1764509347995,0.94229438,91855.0,91854.0,0.11496336]
[1764509348305,0.92528,91855.0,91854.0,0.22992336]
[1764509349106,0.61528,91855.0,91854.0,0.22992336]
[1764509349409,0.6958,91856.0,91855.0,0.2408063]
[1764509351302,0.6968,91856.0,91855.0,0.2408063]
[1764509352505,1.0768,91856.0,91855.0,0.05336732]
[1764509355217,1.0768,91856.0,91855.0,0.16832732]
[1764509355610,1.0768,91856.0,91855.0,0.28328732]
[1764509356013,1.0768,91856.0,91855.0,0.16832732]
[1764509356325,1.0768,91856.0,91855.0,0.05336732]
[1764509357014,0.6968,91856.0,91855.0,0.28328732]
[1764509357218,0.42256,91856.0,91855.0,0.28328732]
[1764509357910,0.94495,91856.0,91855.0,0.28328732]
[1764509358413,0.68495,91856.0,91855.0,0.28328732]
[1764509362218,0.68495,91856.0,91855.0,0.05336732]
[1764509362719,1.03495,91856.0,91855.0,0.05336732]
[1764509364720,1.03495,91856.0,91855.0,0.1307894]
[1764509368420,1.03495,91856.0,91855.0,0.05336732]
[1764509368819,0.51152,91856.0,91854.0,6.8e-07]
[1764509369115,0.55272696,91855.0,91854.0,0.01088718]
[1764509369413,0.55272696,91855.0,91840.0,0.0108881]
[1764509369414,0.53571,91846.0,91845.0,0.08830958]
[1764509369619,0.90571,91846.0,91845.0,0.08830958]
[1764509370019,0.57571,91846.0,91845.0,0.08830958]
[1764509370220,0.88571,91846.0,91845.0,0.08830958]
[1764509370813,0.88571,91846.0,91845.0,0.09030958]
[1764509371013,0.88571,91846.0,91845.0,0.0128875]
[1764509371210,0.90272768,91846.0,91845.0,0.002]
[1764509376716,0.88571,91846.0,91845.0,0.002]
[1764509376917,0.53571,91846.0,91845.0,0.36042]
[1764509377116,0.53571,91846.0,91845.0,0.43784208]
[1764509377425,0.00016336,91855.0,91854.0,0.3693065]
[1764509378020,0.69623,91864.0,91863.0,0.1900954]
[1764509378320,0.70344,91875.0,91874.0,0.0108841]
[1764509378523,0.70344,91875.0,91874.0,0.5343241]
[1764509378725,0.53571,91875.0,91874.0,0.5343241]
[1764509378919,0.53598208,91886.0,91885.0,0.5343228]
[1764509379119,0.94598208,91886.0,91885.0,0.5343228]
[1764509379320,0.94598208,91886.0,91885.0,0.59242759]
[1764509380330,0.94598208,91886.0,91885.0,0.5343228]
[1764509380626,0.95198208,91886.0,91885.0,0.5343228]
[1764509380819,0.95198208,91886.0,91885.0,0.2706128]
[1764509381214,0.95198208,91886.0,91885.0,0.32871759]
[1764509381418,0.95198208,91886.0,91885.0,0.0108828]
[1764509381816,0.95198208,91886.0,91885.0,0.06898759]
[1764509382220,0.95198208,91886.0,91885.0,0.59242759]
[1764509382416,0.95198208,91886.0,91885.0,0.5343228]
[1764509382825,0.00627208,91886.0,91885.0,0.6118187]
[1764509383024,0.00627208,91886.0,91885.0,0.5343228]
[1764509384126,0.00027208,91886.0,91885.0,0.5393228]
[1764509384330,0.00027208,91886.0,91885.0,0.61657329]
[1764509385129,0.00027208,91886.0,91885.0,0.61757329]
[1764509385329,0.00027208,91886.0,91885.0,0.5403228]
[1764509386837,8e-08,91886.0,91885.0,0.5403228]
[1764509388234,8e-08,91886.0,91885.0,0.6621228]
[1764509390835,0.25397008,91886.0,91885.0,0.6621228]
[1764509392031,0.51387008,91886.0,91885.0,0.6621228]
[1764509392427,0.51387008,91886.0,91885.0,0.8354428]
[1764509392939,0.51387008,91886.0,91885.0,0.6621228]
[1764509393430,8e-08,91886.0,91885.0,0.1386828]
[1764509394135,0.25397008,91886.0,91885.0,0.3946828]
[1764509394335,0.51387008,91886.0,91885.0,0.6580628]
[1764509395533,0.79387008,91886.0,91885.0,0.1386828]
[1764509396230,0.79387008,91886.0,91885.0,0.4020628]
[1764509396631,0.79387008,91886.0,91885.0,0.6580628]
[1764509398429,0.53397008,91886.0,91885.0,0.6580628]
[1764509398635,0.79387008,91886.0,91885.0,0.6580628]
[1764509398834,0.51387008,91886.0,91885.0,0.6580628]
[1764509400035,0.51387008,91886.0,91885.0,0.5362628]
[1764509401724,0.51387008,91886.0,91885.0,0.0168828]
[1764509401929,0.51387008,91886.0,91885.0,0.5362628]
[1764509402331,8e-08,91886.0,91885.0,0.0168828]
[1764509403138,0.51403327,91895.0,91894.0,0.0108817]
[1764509403139,7e-08,91895.0,91894.0,0.0108817]
[1764509403343,7e-08,91895.0,91894.0,0.6520617]
[1764509403729,0.16063,91910.0,91909.0,0.01088]
[1764509403730,0.6745,91910.0,91909.0,0.01088]
[1764509403931,0.51387,91890.0,91889.0,0.5302623]
[1764509404130,0.16063,91903.0,91902.0,0.5302608]
[1764509404131,0.6745,91903.0,91902.0,0.5302608]
[1764509404333,0.51387,91903.0,91902.0,0.5302608]
[1764509404928,0.6745,91910.0,91909.0,0.53026]
[1764509405129,0.51387,91910.0,91909.0,0.53026]
[1764509405333,0.00016327,91912.0,91909.0,0.53026]
[1764509405527,0.00016327,91912.0,91911.0,0.51938]
[1764509405732,0.51403327,91912.0,91911.0,0.51938]
[1764509406137,0.00016327,91912.0,91911.0,0.53492339]
[1764509406544,0.67466327,91912.0,91911.0,0.61220517]
[1764509406741,1.07466327,91912.0,91911.0,0.18882339]
[1764509406944,1.07466327,91912.0,91911.0,0.01554339]
[1764509407238,0.67466327,91912.0,91911.0,0.69266]
[1764509407539,1.07666327,91912.0,91911.0,0.70866973]
[1764509408738,0.51387,91902.0,91898.0,0.07728178]
[1764509409043,0.51387,91894.0,91893.0,0.01104507]
[1764509409233,0.75387,91894.0,91893.0,0.02702638]
[1764509410136,0.75387,91894.0,91893.0,0.03002638]
[1764509411143,0.75387,91894.0,91893.0,0.29340638]
[1764509412339,0.77087909,91894.0,91893.0,0.29340638]
[1764509413338,0.77087909,91894.0,91893.0,0.03002638]
[1764509414657,0.51304,91882.0,91881.0,0.0108832]
[1764509414838,0.95004909,91882.0,91881.0,0.0108832]
[1764509415034,0.95004909,91882.0,91881.0,0.02637585]
[1764509415354,0.95004909,91882.0,91881.0,0.01549265]
[1764509415646,0.51304,91874.0,91873.0,0.0108842]
[1764509415846,0.89004909,91874.0,91873.0,0.0108842]
[1764509416550,0.51304,91873.0,91872.0,0.00016327]
[1764509416747,0.90004909,91873.0,91872.0,0.00016327]
[1764509416947,0.16613,91854.0,91853.0,0.0108866]
[1764509417152,1.07917,91854.0,91853.0,0.0108866]
[1764509418443,0.81304,91854.0,91853.0,0.5320366]
[1764509419450,0.51320327,91863.0,91862.0,0.5320355]
[1764509419648,0.25385327,91863.0,91862.0,0.5320355]
[1764509419851,0.51320327,91863.0,91862.0,0.5320355]
[1764509420047,0.67933327,91863.0,91862.0,0.2748055]
[1764509420251,0.67933327,91863.0,91862.0,0.5320355]
[1764509420642,0.51320327,91863.0,91862.0,0.5320355]
[1764509420851,0.51420327,91863.0,91862.0,0.5320355]
[1764509421451,0.00116327,91863.0,91862.0,0.5320355]
[1764509422052,0.68033327,91863.0,91862.0,0.5320355]
[1764509423550,0.51420327,91863.0,91862.0,0.5320355]
[1764509423750,0.15116327,91863.0,91862.0,0.5320355]
[1764509424054,0.26230327,91863.0,91862.0,0.5320355]
[1764509424654,0.00116327,91863.0,91862.0,0.5320355]
[1764509424846,0.26230327,91863.0,91862.0,0.5320355]
[1764509425045,0.68180327,91863.0,91862.0,0.5320355]
[1764509425445,0.53066327,91863.0,91862.0,0.5320355]
[1764509425850,1.07180327,91863.0,91862.0,0.0108855]
[1764509427256,1.07180327,91863.0,91862.0,0.04950002]
[1764509427555,1.07180327,91863.0,91862.0,0.0108855]
[1764509433248,1.07180327,91863.0,91862.0,0.2694855]
[1764509433453,0.92066327,91863.0,91862.0,0.5323555]
[1764509433653,0.65230327,91863.0,91862.0,0.5323555]
[1764509433853,0.39116327,91863.0,91862.0,0.5323555]
[1764509434249,1.02935327,91863.0,91862.0,0.0108855]
[1764509434448,0.49985327,91863.0,91860.0,0.03860698]
[1764509434652,0.5295,91856.0,91855.0,0.03860698]
[1764509434962,0.5295,91855.0,91854.0,0.04949338]
[1764509435260,0.5295,91855.0,91854.0,0.0108864]
[1764509435261,0.8795,91855.0,91854.0,0.0108864]
[1764509437054,0.8795,91855.0,91854.0,0.0118864]
[1764509438556,0.8795,91855.0,91854.0,0.2704864]
[1764509438865,0.8795,91855.0,91854.0,0.0118864]
[1764509439262,0.8795,91855.0,91854.0,0.06983548]
[1764509439964,0.7595,91855.0,91854.0,0.59130548]
[1764509440158,0.00016327,91863.0,91862.0,0.5323555]
[1764509440360,7e-08,91863.0,91862.0,0.5323555]
[1764509441166,0.8903,91877.0,91876.0,0.5323539]
[1764509441364,1.3103,91877.0,91876.0,0.5323539]
[1764509441565,0.4708,91877.0,91876.0,0.5323539]
[1764509441966,0.11,91877.0,91876.0,0.7055539]
[1764509442467,0.26130327,91886.0,91885.0,0.5323528]
[1764509442767,0.45130327,91886.0,91885.0,0.5323528]
[1764509442967,0.93966327,91886.0,91885.0,0.5323528]
[1764509443167,0.52966327,91886.0,91885.0,0.5323528]
[1764509443367,0.00016327,91886.0,91885.0,0.5323528]
[1764509444068,0.00616327,91886.0,91885.0,0.5323528]
[1764509444263,7e-08,91886.0,91885.0,0.5323528]
[1764509444565,0.61635,91904.0,91903.0,0.50874]
[1764509444762,0.61635,91904.0,91903.0,0.5196207]
[1764509444763,0.05700838,91904.0,91903.0,0.5196207]
[1764509444958,0.29555,91904.0,91903.0,0.5196207]
[1764509446757,0.56203,91904.0,91903.0,0.5196207]
[1764509447071,0.56203,91904.0,91903.0,0.0108807]
[1764509447072,1.26283,91904.0,91903.0,0.0108807]
[1764509447572,1.19283,91904.0,91903.0,0.0108807]
[1764509447771,0.25955,91904.0,91903.0,0.5196207]
[1764509448068,0.87203,91904.0,91903.0,0.0108807]
[1764509451369,0.87203,91904.0,91903.0,0.04945731]
[1764509451570,0.87203,91904.0,91902.0,0.03857661]
[1764509451773,0.51803,91899.0,91898.0,0.0108823]
[1764509451968,0.94803,91899.0,91898.0,0.0108823]
[1764509452361,0.69248,91899.0,91897.0,0.03857661]
[1764509452567,0.51803,91897.0,91896.0,0.03857661]
[1764509452874,0.51803,91895.0,91894.0,0.00016327]
[1764509453076,0.90803,91895.0,91894.0,0.00016327]
[1764509453376,0.90803,91895.0,91885.0,0.0108838]
[1764509453377,0.51803,91886.0,91885.0,0.0108838]
[1764509453675,0.51803,91884.0,91881.0,0.04946091]
[1764509453886,0.51803,91882.0,91880.0,0.03857661]
[1764509454075,0.51803,91877.0,91876.0,0.03857661]
[1764509454276,0.92803,91877.0,91876.0,0.03857661]
[1764509454774,0.92803,91877.0,91875.0,0.04946161]
[1764509454984,0.51803,91876.0,91875.0,0.04946161]
[1764509455290,0.92803,91876.0,91875.0,0.04946161]
[1764509455977,0.73803,91876.0,91875.0,0.256585]
[1764509456281,0.73803,91876.0,91875.0,0.258585]
[1764509456482,0.73803,91876.0,91875.0,0.012885]
[1764509456783,0.73803,91876.0,91875.0,0.010885]
[1764509457482,0.73803,91876.0,91875.0,0.002]
[1764509459679,0.51803,91874.0,91873.0,0.0108853]
[1764509459985,0.90803,91874.0,91873.0,0.0108853]
[1764509461493,0.51803,91868.0,91867.0,0.05806695]
[1764509461682,0.93803,91868.0,91867.0,0.05806695]
[1764509462071,0.51803,91864.0,91861.0,0.0386777]
[1764509462386,0.51803,91849.0,91845.0,0.0108886]
[1764509462585,0.88803,91849.0,91841.0,0.010889]
[1764509462775,0.88803,91849.0,91848.0,0.01662103]
[1764509463588,0.88803,91849.0,91848.0,0.02162103]
[1764509464282,0.88803,91849.0,91848.0,0.02084591]
[1764509465287,0.64974,91840.0,91839.0,0.00016327]
[1764509465487,1.04974,91840.0,91839.0,0.00016327]
[1764509465686,1.04974,91840.0,91839.0,0.01668376]
[1764509465880,1.04974,91840.0,91839.0,0.00016327]
[1764509466677,1.04974,91840.0,91839.0,0.00316327]
[1764509467276,1.05074,91840.0,91839.0,0.00016327]
[1764509467783,1.05074,91840.0,91839.0,0.01635507]
[1764509467983,1.05074,91840.0,91839.0,0.00016327]
[1764509469483,1.05474,91840.0,91839.0,0.0170084]
[1764509469688,1.05474,91840.0,91839.0,0.00016327]
[1764509470288,1.05474,91840.0,91839.0,0.01676484]
[1764509473090,1.05274,91840.0,91839.0,0.01676484]
[1764509473479,1.04974,91840.0,91839.0,0.01676484]
[1764509473680,1.05274,91840.0,91839.0,0.01676484]
[1764509474381,1.17548628,91840.0,91839.0,0.01676484]
[1764509474582,0.47501,91823.0,91822.0,0.0108914]
[1764509474787,1.23592234,91823.0,91822.0,0.0108914]
[1764509475174,1.23592234,91823.0,91818.0,0.0108918]
[1764509475175,0.76091234,91823.0,91818.0,0.0108918]
[1764509475380,0.47501,91819.0,91818.0,0.0108918]
[1764509475582,0.83501,91819.0,91818.0,0.02739372]
[1764509475883,0.36091234,91823.0,91822.0,0.4766714]
[1764509476077,0.84512234,91823.0,91822.0,0.4766714]
[1764509476283,0.47501,91819.0,91818.0,0.01850192]
[1764509476586,0.47501,91819.0,91818.0,0.62640192]
[1764509476783,0.53501,91819.0,91818.0,0.62640192]
[1764509476983,0.77501,91819.0,91818.0,0.62440192]
[1764509477182,0.77501,91819.0,91818.0,0.48228192]
[1764509478190,0.77501,91819.0,91818.0,0.01650192]